[Event "Silves Open 2025"]
[Site "Fissul"]
[Date "2025.03.05"]
[Round "6.13"]
[White "Esteves, Goncalo Maria Franco"]
[Black "Prata, Jose"]
[Result "1/2-1/2"]
[Annotator "TA"]
[ECO "D00"]
[WhiteElo "1962"]
[BlackElo "1839"]
[PlyCount "118"]
[EventDate "2025.03.03"]
[EventType "swiss"]
[EventCountry "POR"]
[SourceTitle "playchess.com"]
[Source "ChessBase"]
[SourceQuality "1"]
[TimeControl "5400+30"]

{[%evp 9,118,-3,6,9,13,8,13,0,7,6,9,4,19,-2,-14,-13,-18,-33,-20,-51,-4,-49,9,-22,-29,-75,0,0,0,-23,0,0,112,117,130,125,122,102,112,87,144,120,129,151,137,121,156,43,55,10,15,24,189,174,264,266,245,170,159,156,131,0,90,28,35,35,115,100,97,45,97,97,88,0,8,-189,-171,-153,-144,-1466,-327,-678,-8,-541,22,-170,-156,-135,43,-75,167,0,143,191,123,-51,57,71,73,73,442,43,43,43,83,8,8,8,8,0,0]} 1. d4 {[%emt 1:31:00]} d5 {[%emt 1:31:00]} 2. e3 {[%emt 0:00:30]} Nf6 {[%emt 0:00:30]} 3. Bd3 {[%emt 0:00:30]} c6 {[%emt 0:00:30]} 4. f4 {[%emt 0:00:30]} g6 {[%emt 0:00:30]} 5. Nd2 {[%emt 0:00:30]} Bg7 {[%emt 0:00:30]} 6. Ngf3 {[%emt 0:00:30] D00: 1 d4 d5: Unusual lines.} O-O {[%emt 0:00:30]} 7. O-O {[%emt 0:00:30]} b6 {[%emt 0:00:30]} 8. Qe2 {[%emt 0:00:30]} c5 {[%emt 0:00:30]} 9. c3 {[%emt 0:00:30]} Bb7 {[%emt 0:00:30]} 10. Ne5 {[%emt 0:00:30]} e6 {[%emt 0:00:30]} 11. Qf3 {[%emt 0:00:30]} Nc6 {[%emt 0:00:30]} 12. Nxc6 $146 {[%emt 0:00:30]} (12. g4 Nd7 13. Qh3 f5 14. Nxd7 Qxd7 15. Nf3 e5 16. Nxe5 Nxe5 17. fxe5 fxg4 18. Qg2 c4 19. Rxf8+ Rxf8 {0-1 Koellner,R (2481)-Bortnyk,O (2608) Titled Tuesday intern op 24th Sep Late blitz 2024 (6)}) 12... Bxc6 {[%emt 0:00:30]} 13. g4 {[%emt 0:00:30]} Qc7 {[%emt 0:00:30]} 14. h4 {[%emt 0:00:30]} Qb7 {[%emt 0:00:30]} (14... Qd7 $15 {was preferable.}) 15. Qh3 {[%emt 0:00:30]} Ne4 {[%emt 0:00:30]} (15... h5 $15 16. gxh5 Bd7 (16... Nxh5 17. Nf3 $11)) 16. Nf3 {[%emt 0:00:30]} f5 {[%emt 0:00:30]} 17. h5 {[%emt 0:00:30]} (17. g5 $11) 17... Rae8 {[%emt 0:00:30]} (17... fxg4 $17 18. Qxg4 gxh5 19. Qxh5 Rf5) 18. hxg6 $11 {[%emt 0:00:30]} hxg6 {[%emt 0:00:30]} 19. g5 {[%emt 0:00:30]} Kf7 {[%emt 0:00:30]} (19... Qb8 20. a4 Qc7 21. Qh2 Rc8) 20. Qh7 {[%emt 0:00:30]} e5 {[%emt 0:00:30]} 21. Nxe5+ $16 {[%emt 0:00:30]} (21. fxe5 $2 Rh8 22. Bxe4 Rxh7 $19) 21... Rxe5 {[%emt 0:00:30]} 22. fxe5 {[%emt 0:00:30][%csl Oe5] White has a strong passed pawn} Qe7 {[%emt 0:00:30]} 23. Bxe4 {[%emt 0:00:30]} dxe4 {[%emt 0:00:30]} 24. Qh4 {[%emt 0:00:30]} Rh8 {[%emt 0:00:30]} 25. Qf4 {[%emt 0:00:30]} Rh5 {[%emt 0:00:30]} 26. Rf2 {[%emt 0:00:30]} Rxg5+ {[%emt 0:00:30]} 27. Rg2 {[%emt 0:00:30]} Rh5 {[%emt 0:00:30]} 28. b3 {[%emt 0:00:30]} ({White should try} 28. Qg3 $1 $16 {[%cal Rg3g6]} g5 29. c4) 28... Bh6 $14 {[%emt 0:00:30]} 29. Qg3 {[%emt 0:00:30]} Rg5 {[%emt 0:00:30]} 30. Qf2 {[%emt 0:00:30]} Rh5 $2 {[%emt 0:00:30]} (30... Kg7 $1 $11 {and Black stays safe.}) 31. Rh2 $1 $18 {[%emt 0:00:30]} Rg5+ {[%emt 0:00:30]} (31... Qg5+ $142 32. Qg2 Ke6 33. Qxg5 Bxg5 34. Rxh5 gxh5) 32. Kf1 {[%emt 0:00:30]} Bg7 {[%emt 0:00:30]} 33. Rh4 {[%emt 0:00:30] Wards off Rg4} cxd4 {[%emt 0:00:30]} 34. exd4 {[%emt 0:00:30]} e3 {[%emt 0:00:30]} 35. Qxe3 {[%emt 0:00:30]} ({White must play} 35. Bxe3 $16 Rg2 36. Qf4) 35... Rg2 {[%emt 0:00:30]} (35... Rg1+ $1 $11 36. Qxg1 (36. Kxg1 Qxh4 37. Qe2 Qg3+ 38. Kf1 Qh3+ 39. Kf2 Qh4+ 40. Kf1 b5 $11) 36... Qxh4 37. e6+ Kxe6 (37... Kf6 38. Be3 $16) 38. Qxg6+ Bf6) 36. Rh7 {[%emt 0:00:30]} (36. Rh3 $1 $16) 36... Kg8 $11 {[%emt 0:00:30]} 37. Qh6 {[%emt 0:00:30]} Qf8 {[%emt 0:00:30] [#]} (37... Rg4 $14) 38. Rxg7+ $1 {[%emt 0:00:30]} Qxg7 {[%emt 0:00:30]} 39. Qxg7+ {[%emt 0:00:30]} Kxg7 $16 {[%emt 0:00:30][%mdl 4096] Endgame KRB-KRB. White is a pawn up.} 40. c4 {[%emt 0:00:30]} Be4 {[%emt 0:00:30]} 41. Ba3 {[%emt 0:00:30]} (41. d5 $16 Rh2 42. e6) 41... Rh2 $11 {[%emt 0:00:30] Hoping for ...Rh1+.} 42. Bc1 $2 {[%emt 0:00:30] [#]} (42. Re1 $11) 42... g5 $1 {[%emt 0:00:30][%mdl 1536] Black has strong compensation.} 43. Be3 {[%emt 0:00:30][%cal Oa1e1]} (43. d5 f4) 43... f4 {[%emt 0:00:30]} 44. Bg1 {[%emt 0:00:30][%mdl 8192]} (44. Re1 $17) 44... Rc2 $2 {[%emt 0:00:30]} (44... Bd3+ 45. Ke1 Re2+ 46. Kd1 Rg2) 45. d5 $2 {[%emt 0:00:30]} (45. Bf2 g4 46. Re1) 45... Kf8 $2 {[%emt 0:00:30]} (45... Bd3+ $2 46. Ke1 $19) (45... g4 $19 46. Bd4 g3 47. e6+ Kf8 (47... Kg6 $2 48. Be5 $19)) 46. e6 $2 {[%emt 0:00:30][%mdl 8192]} (46. Rd1 $1 $11) 46... Ke7 $2 {[%emt 0:00:30]} (46... g4 $1 $19 47. Rd1 g3 (47... Rxa2 $2 48. d6 $18)) 47. Bd4 $2 {[%emt 0:00:30]} (47. Bf2 $11 {and White stays safe.}) 47... g4 $1 $19 {[%emt 0:00:30]} 48. Re1 {[%emt 0:00:30]} Bg6 {[%emt 0:00:30]} (48... Bd3+ $17 49. Kg1 f3 50. d6+ (50. Bf2 $2 g3 $19) 50... Kxd6) 49. Be5 {[%emt 0:00:30]} (49. Re5 $14 {stays ahead.}) 49... f3 $2 {[%emt 0:00:30] [#]} (49... Bd3+ $1 $17 {keeps the pressure on.} 50. Kg1 f3 51. d6+ Kxe6 52. Bg3+ Be2) 50. Re3 $2 {[%emt 0:00:30]} (50. Rd1 $1 $18 Be8 51. a4) 50... Rxa2 {[%emt 0:00:30]} (50... Rc1+ $1 $11 {keeps the balance.} 51. Kf2 Rc2+ 52. Kg1 Rc1+ 53. Kf2) 51. Bg3 $16 {[%emt 0:00:30]} Ra1+ {[%emt 0:00:30]} ({Better is} 51... Rd2 $18 52. Ke1 Rd4) 52. Be1 $2 {[%emt 0:00:30]} (52. Re1 $16 Rxe1+ 53. Kxe1) 52... Rd1 {[%emt 0:00:30]} (52... g3 $1 $15 53. Rxf3 g2+ 54. Kxg2 Rxe1) 53. Kf2 $14 {[%emt 0:00:30]} a5 {[%emt 0:00:30] [#]} 54. Kg3 $1 {[%emt 0:00:30]} Rd3 $2 {[%emt 0:00:30][%mdl 8192]} (54... Bf5 $2 55. Kf4 Kf6 56. e7 $18 (56. Bh4+ Kg6 $18)) (54... Bd3 $16) 55. Bf2 $2 {[%emt 0:00:30]} (55. Rxd3 $18 {Hoping for d6+.} Bxd3 56. Kf4 (56. Kxg4 a4 $18)) 55... Rxe3 {[%emt 0:00:30]} 56. Bxe3 {[%emt 0:00:30]} Bc2 {[%emt 0:00:30]} 57. Bxb6 {[%emt 0:00:30]} (57. Kf4 $16 {Threatening mate with Ke5.} Bxb3 58. Ke5) 57... Bxb3 $11 {[%emt 0:00:30] The position is equal.} 58. Bc5+ {[%emt 0:00:30]} (58. Kxg4 Bxc4 59. Bc5+ (59. Kxf3 Bxd5+ 60. Ke3 Bg2 $11) 59... Kf6 (59... Ke8 60. Kxf3 Bxd5+ 61. Ke3 $11)) 58... Kf6 $1 {[%emt 0:00:30]} 59. Bd4+ {[%emt 0:00:30]} Ke7 {[%emt 0:00:30] Quite a comeback for White.   Weighted Error Value: White=0.72/Black=0.69  Loses game:     	White=4     	Black=3      Missed win:     	White=2     	---        Mistake:       	White=9     	Black=12     Inaccurate:     	White=5     	Black=1      OK:         	White=11    	Black=17     Best:        	White=7     	Black=3      Strong:       	White=2     	Black=2} 1/2-1/2

[Event "Silves Open 2025"]
[Site "Fissul"]
[Date "2025.03.05"]
[Round "6.14"]
[White "Crow, Steve"]
[Black "Santos, Joao Artur Almeida"]
[Result "0-1"]
[Annotator "TA"]
[ECO "B23"]
[WhiteElo "1742"]
[BlackElo "1950"]
[PlyCount "110"]
[EventDate "2025.03.03"]
[EventType "swiss"]
[EventCountry "POR"]
[SourceTitle "playchess.com"]
[Source "ChessBase"]
[SourceQuality "1"]
[TimeControl "5400+30"]

{[%evp 12,110,-17,-24,-20,-70,-49,-78,-41,-127,-74,-129,-118,-115,-108,-109,-105,-177,-177,-256,-197,-209,-194,-249,-145,-141,-141,-219,-200,-200,-192,-208,-129,-189,-197,-321,-91,-102,-91,-98,-108,-106,-81,-92,-71,-115,-94,-96,-87,-93,-93,-119,-120,-122,-116,-160,-160,-160,-160,-160,-160,-188,-189,-243,-244,-244,-244,-430,-441,-439,-433,-432,-427,-569,-569,-562,-502,-741,-734,-801,-691,-675,-631,-887,-882,-879,-825,-810,-808,-714,-713,-1625,-1173,-1116,-1080,-1776,-1871,-1913,-2012,-1456,-1366]} 1. e4 {[%emt 0:00:11]} c5 {[%emt 0:00:07]} 2. Nc3 {[%emt 0:00:10]} Nc6 {[%emt 0:00:17]} 3. f4 {[%emt 0:00:08]} g6 {[%emt 0:00:40]} 4. Nf3 {[%emt 0:00:23]} Bg7 {[%emt 0:00:10]} 5. Bb5 {[%emt 0:00:31]} Nd4 {[%emt 0:00:25]} 6. a4 {[%emt 0:00:28]} e6 {[%emt 0:01:19]} 7. O-O {[%emt 0:01:54]} Ne7 {[%emt 0:00:32] B23: Closed Sicilian: Lines without g3.} 8. d3 {[%emt 0:01:28]} (8. Nxd4 $11 Bxd4+ 9. Kh1) 8... O-O $1 $15 {[%emt 0:00:20]} 9. Bc4 {[%emt 0:15:30]} b6 {[%emt 0:07:28] Black is better.} 10. Ne2 {[%emt 0:05:00]} (10. e5 $15) 10... d5 {[%emt 0:02:28]} (10... Nxf3+ $142 11. gxf3 d5) 11. Ba2 {[%emt 0:08:13]} (11. Nexd4 $142 dxc4 (11... cxd4 12. Bb3 $15) 12. Nb5) 11... dxe4 $146 {[%emt 0:00:36] Black is more active.} (11... Nxf3+ 12. Rxf3 dxe4 13. Rf1 exd3 14. cxd3 Ba6 15. Bc4 Bxc4 16. dxc4 Nc6 17. Nc3 Qd4+ 18. Qxd4 Bxd4+ {0-1 Rzeszowski,D (1869)-Ruiz Villalba,A (1741) FIDE World Uni Rapid-E 1st 2021 (8)}) 12. dxe4 {[%emt 0:02:40]} Nxf3+ {[%emt 0:00:16]} 13. gxf3 {[%emt 0:00:13]} Ba6 {[%emt 0:00:19]} 14. c4 {[%emt 0:01:42]} (14. Qe1 $17) 14... Nc6 $19 {[%emt 0:00:28]} 15. e5 {[%emt 0:08:09]} (15. Nc3 $142) 15... Nb4 {[%emt 0:03:17]} 16. b3 {[%emt 0:06:22]} Bb7 {[%emt 0:00:36]} 17. Bd2 {[%emt 0:02:31]} (17. Bb1 {might work better.}) 17... Nxa2 {[%emt 0:01:40]} (17... f6 $19 18. Bxb4 cxb4) 18. Rxa2 $17 {[%emt 0:43:57]} Qd3 {[%emt 0:00:22]} 19. Kg2 {[%emt 0:00:00]} (19. Qc2 $17 Rad8 (19... Qxe2 20. Rf2 $15) 20. Qxd3 Rxd3 21. Nc1 Rxf3 22. Rxf3 Bxf3 23. a5) 19... Rfd8 {[%emt 0:00:53]} 20. Nc1 {[%emt 0:00:00]} Qf5 {[%emt 0:00:23][%cal Og6g5]} 21. Qe1 {[%emt 0:00:00]} Bh6 {[%emt 0:01:07]} 22. Ne2 {[%emt 0:00:00]} (22. Qh4 $17) 22... Rd3 $19 {[%emt 0:04:26][%cal Od3f3]} 23. Nc1 {[%emt 0:00:00] [#]} (23. Qh4 Rad8 24. Bc1) 23... Rxf3 $2 {[%emt 0:02:24]} 24. Rxf3 $17 {[%emt 0:00:00][%cal Oe1g3] Threatens to win with Qg3!.} Qg4+ {[%emt 0:00:05]} 25. Qg3 {[%emt 0:00:00]} Bxf3+ {[%emt 0:00:05] A strong pair of Bishops.} 26. Kf2 {[%emt 0:00:00]} Qxg3+ {[%emt 0:00:11]} 27. hxg3 {[%emt 0:00:00]} Be4 {[%emt 0:00:04]} 28. g4 {[%emt 0:00:00]} Bg7 {[%emt 0:01:26]} 29. Ke3 {[%emt 0:00:00]} Bc6 $36 {[%emt 0:00:20][%cal Og6g5][%mdl 2048] Black is in control.} 30. g5 {[%emt 0:00:00]} h6 {[%emt 0:00:21]} 31. Bc3 {[%emt 0:00:00]} Rd8 {[%emt 0:00:59]} 32. Nd3 {[%emt 0:00:00]} Bf8 {[%emt 0:00:49]} 33. Ra1 {[%emt 0:00:00]} hxg5 {[%emt 0:00:15]} 34. fxg5 {[%emt 0:00:00]} Be7 {[%emt 0:00:03]} 35. Rg1 {[%emt 0:00:00]} Kg7 {[%emt 0:00:13]} 36. Bb2 {[%emt 0:00:00]} Rh8 {[%emt 0:00:39]} 37. Rg3 {[%emt 0:01:22]} (37. Nf2 $142) 37... Rh5 $19 {[%emt 0:00:28]} 38. Kf4 {[%emt 0:00:40]} Rh4+ {[%emt 0:00:57]} 39. Rg4 $2 {[%emt 0:01:54]} (39. Ke3 {is the only way for White.}) 39... Rh3 {[%emt 0:00:19] Black is clearly winning.} 40. Rg3 {[%emt 0:02:06]} Rxg3 {[%emt 0:00:12]} 41. Kxg3 {[%emt 0:00:02]} Bxg5 {[%emt 0:00:06]} 42. Bc1 {[%emt 0:01:08]} Bxc1 {[%emt 0:00:08]} 43. Nxc1 {[%emt 0:00:01][%mdl 4096] Endgame KB-KN. Black is two pawns up.} f6 {[%emt 0:00:26]} 44. Kf4 {[%emt 0:00:52]} g5+ {[%emt 0:00:06]} 45. Kg4 {[%emt 0:00:21]} Kg6 {[%emt 0:00:04]} 46. exf6 {[%emt 0:00:17]} Kxf6 {[%emt 0:00:04]} 47. Nd3 {[%emt 0:00:29]} Be4 {[%emt 0:00:11]} 48. Nc1 {[%emt 0:00:21]} Bc2 {[%emt 0:00:08]} 49. Kf3 {[%emt 0:01:59]} Ke5 {[%emt 0:00:07]} 50. Ke3 {[%emt 0:00:17]} g4 {[%emt 0:00:04] White must now prevent ...g3.} 51. Kf2 {[%emt 0:00:23]} Kd4 {[%emt 0:00:05]} 52. Ne2+ {[%emt 0:00:26]} Ke4 {[%emt 0:00:14]} 53. Nc3+ {[%emt 0:00:23]} Kd3 {[%emt 0:00:08]} 54. Ne2 {[%emt 0:00:44]} Bxb3 {[%emt 0:00:09]} 55. Nf4+ {[%emt 0:00:33]} Kxc4 {[%emt 0:00:05] Weighted Error Value: White=0.54/Black=0.21 (precise)   Missed win:     	---       	Black=1      Mistake:       	White=11    	Black=2      Inaccurate:     	White=5     	Black=2      OK:         	White=6     	Black=16     Best:        	White=2     	---        Strong:       	---       	Black=1} 0-1

[Event "Silves Open 2025"]
[Site "Fissul"]
[Date "2025.03.05"]
[Round "6.16"]
[White "Silverio, Vitor Luis De Jesus"]
[Black "Pena, Helio Adelino Silva"]
[Result "1/2-1/2"]
[Annotator "TA"]
[ECO "C30"]
[WhiteElo "2143"]
[BlackElo "1842"]
[PlyCount "80"]
[EventDate "2025.03.03"]
[EventType "swiss"]
[EventCountry "POR"]
[SourceTitle "playchess.com"]
[Source "ChessBase"]
[SourceQuality "1"]
[TimeControl "5400+30"]

{[%evp 9,80,-106,31,33,37,25,23,22,43,37,67,56,86,96,95,98,101,7,19,22,26,0,44,36,73,14,22,12,17,-46,-52,-38,12,11,24,24,24,24,39,39,50,52,117,0,39,27,27,8,45,45,45,45,45,45,45,37,45,45,45,45,45,45,45,0,45,35,42,14,49,49,49,49,49]} 1. e4 {[%emt 0:00:04]} e5 {[%emt 0:01:27]} 2. f4 {[%emt 0:00:04]} Nc6 {[%emt 0:01:38]} 3. Nf3 {[%emt 0:00:30]} d6 {[%emt 0:00:30]} 4. Bc4 {[%emt 0:00:30]} h6 {[%emt 0:00:30]} 5. O-O {[%emt 0:00:30]} Nf6 {[%emt 0:00:30]} (5... exf4 $17 6. b3 g5) 6. d3 $14 {[%emt 0:00:30] C30: King's Gambit Declined.} Be7 {[%emt 0:00:30]} 7. c3 {[%emt 0:00:30]} a6 {[%emt 0:00:30]} 8. a4 $146 {[%emt 0:00:30] White has an edge.} (8. Qe2 O-O 9. f5 Re8 10. Bb3 Na5 11. h3 Nxb3 12. axb3 Kh7 13. c4 c6 14. g4 {½-½ Belu,A-Mathe,K ROM-ch sf U14 Girls 2001 (8)}) 8... Bg4 {[%emt 0:00:30]} 9. h3 {[%emt 0:00:30]} Bxf3 {[%emt 0:00:30]} 10. Qxf3 {[%emt 0:00:30]} exf4 {[%emt 0:00:30]} 11. Bxf4 {[%emt 0:00:30]} Ne5 {[%emt 0:00:30]} 12. Bxe5 {[%emt 0:00:30]} dxe5 {[%emt 0:00:30] [#]} 13. b4 {[%emt 0:00:30]} (13. Qg3 $1 $16) 13... O-O {[%emt 0:00:30][%cal Oe7b4]} (13... Bxb4 {looks sharper.} 14. Qg3 O-O 15. cxb4 Qd4+) 14. Na3 {[%emt 0:00:30]} c6 {[%emt 0:00:30]} 15. Nc2 {[%emt 0:00:30]} Qc7 {[%emt 0:00:30]} 16. Ne3 {[%emt 0:00:30]} g6 {[%emt 0:00:30]} 17. Ng4 {[%emt 0:00:30]} (17. a5 $16) 17... Nxg4 $11 {[%emt 0:00:30]} 18. Qxg4 {[%emt 0:00:30] Black is weak on the light squares} Kg7 {[%emt 0:00:30]} 19. Rf3 {[%emt 0:00:30]} (19. Kh1 $11) 19... h5 $15 {[%emt 0:00:30]} 20. Qg3 {[%emt 0:00:30]} h4 {[%emt 0:00:30]} ({Black should play} 20... b5 $15 21. axb5 cxb5) 21. Qg4 $11 {[%emt 0:00:30] Raf1 poses a challenge} Qc8 {[%emt 0:00:30]} 22. Raf1 {[%emt 0:00:30]} Qxg4 {[%emt 0:00:30]} 23. Rxf7+ {[%emt 0:00:30]} Rxf7 {[%emt 0:00:30]} 24. Rxf7+ {[%emt 0:00:30]} (24. hxg4 $2 {perishes.} Rxf1+ 25. Kxf1 Rf8+ 26. Kg1 b5 27. axb5 axb5 $19 (27... cxb5 $2 28. Be6 $19)) 24... Kh6 {[%emt 0:00:30]} 25. hxg4 $14 {[%emt 0:00:30][%mdl 4096] Endgame KRB-KRB. White is a pawn up.} Re8 {[%emt 0:00:30] [#]} (25... Bg5 $14) 26. Kf2 {[%emt 0:00:30] White is more active.} (26. a5 $1 $16) 26... Rf8 {[%emt 0:00:30]} (26... b5 $5 27. axb5 axb5 $16) 27. Rxf8 {[%emt 0:00:30]} Bxf8 {[%emt 0:00:30] KB-KB. White is a pawn up.} 28. Ke3 {[%emt 0:00:30]} c5 {[%emt 0:00:30]} 29. bxc5 {[%emt 0:00:30]} Bxc5+ {[%emt 0:00:30]} 30. d4 {[%emt 0:00:30]} Bd6 {[%emt 0:00:30]} 31. Bf7 {[%emt 0:00:30]} Kg5 {[%emt 0:00:30]} 32. Kf3 {[%emt 0:00:30]} a5 {[%emt 0:00:30]} 33. Be8 {[%emt 0:00:30]} b6 {[%emt 0:00:30]} 34. Bd7 {[%emt 0:00:30]} Bc7 {[%emt 0:00:30]} 35. Ke3 {[%emt 0:00:30]} Bd6 {[%emt 0:00:30]} 36. Kf3 {[%emt 0:00:30]} Bc7 {[%emt 0:00:30]} 37. d5 {[%emt 0:00:30]} Bd6 {[%emt 0:00:30]} 38. g3 {[%emt 0:00:30]} hxg3 {[%emt 0:00:30]} 39. Kxg3 {[%emt 0:00:30]} Bc5 {[%emt 0:00:30]} 40. Kf3 {[%emt 0:00:30]} Kf6 {[%emt 0:00:30] Weighted Error Value: White=0.22 (precise) /Black=0.22 (precise)   Mistake:       	White=4     	Black=2      Inaccurate:     	White=2     	Black=7      OK:         	White=12    	Black=11     Best:        	---       	Black=3} 1/2-1/2

[Event "Silves Open 2025"]
[Site "Fissul"]
[Date "2025.03.05"]
[Round "6.17"]
[White "Moldovan, Lucas Gabriel"]
[Black "Albuquerque, Eduardo Ferreira"]
[Result "0-1"]
[Annotator "TA"]
[ECO "B24"]
[WhiteElo "1992"]
[BlackElo "1897"]
[PlyCount "64"]
[EventDate "2025.03.03"]
[EventType "swiss"]
[EventCountry "POR"]
[SourceTitle "playchess.com"]
[Source "ChessBase"]
[SourceQuality "1"]
[TimeControl "5400+30"]

{[%evp 11,64,-30,5,-7,2,-7,8,-4,-12,-18,-7,-19,-12,-8,22,19,26,-22,0,-47,-20,-80,-75,-78,-63,-101,-97,-84,-95,-79,-64,-128,-120,-128,-146,-136,-118,-208,-208,-212,-148,-147,-155,-134,-156,-1695,-1667,-1994,-1914,-29990,-29991,-29991,-29992,-29993,-29994]} 1. e4 {[%emt 1:31:00][%cal Be2e4,Be4e5][%mdl 32]} c5 {[%emt 1:31:00]} 2. Nc3 {[%emt 0:00:30]} e6 {[%emt 0:00:30]} 3. g3 {[%emt 0:00:30]} Nc6 {[%emt 0:00:30]} 4. Bg2 {[%emt 0:00:30]} Nf6 {[%emt 0:00:30]} 5. f4 {[%emt 0:00:30]} d5 {[%emt 0:00:30]} 6. e5 {[%emt 0:00:30]} Nd7 {[%emt 0:00:30]} 7. d3 {[%emt 0:00:30] B24: Closed Sicilian: 3 g3 sidelines.} Rb8 {[%emt 0:00:30]} 8. Nce2 {[%emt 0:00:30]} f6 $146 {[%emt 0:00:30]} ({Predecessor:} 8... b5 9. c4 bxc4 10. dxc4 Nb6 11. b3 Bb7 12. cxd5 Nxd5 13. Bd2 Be7 14. Nf3 Qb6 {0-1 Mengelkamp,A-Riggs,R Belconnen CC-ch 1994}) 9. exf6 {[%emt 0:00:30] The position is equal.} Nxf6 {[%emt 0:00:30]} 10. Nf3 {[%emt 0:00:30]} Bd6 {[%emt 0:00:30]} 11. O-O {[%emt 0:00:30]} O-O {[%emt 0:00:30]} 12. c4 {[%emt 0:00:30]} Qc7 {[%emt 0:00:30]} 13. Nc3 {[%emt 0:00:30]} a6 {[%emt 0:00:30] Prevents Nb5.} 14. b3 {[%emt 0:00:30]} (14. Ng5 $142) 14... b5 {[%emt 0:00:30]} 15. Nd2 {[%emt 0:00:30]} (15. Ng5 $11) 15... b4 {[%emt 0:00:30]} 16. Ne2 {[%emt 0:00:30]} (16. Na4 $1 $11) 16... Bb7 {[%emt 0:00:30]} 17. Nf3 {[%emt 0:00:30]} Rbe8 {[%emt 0:00:30]} 18. Bb2 {[%emt 0:00:30]} e5 {[%emt 0:00:30]} 19. fxe5 {[%emt 0:00:30]} Nxe5 {[%emt 0:00:30]} 20. Nxe5 {[%emt 0:00:30]} Bxe5 {[%emt 0:00:30]} 21. Bxe5 {[%emt 0:00:30]} (21. Qd2 $1 $15) 21... Qxe5 $17 {[%emt 0:00:30]} ({Resist} 21... Rxe5 22. Nf4 $11) 22. Nf4 {[%emt 0:00:30]} Qd4+ {[%emt 0:00:30]} 23. Kh1 {[%emt 0:00:30] [#]} g5 $1 $36 {[%emt 0:00:30][%mdl 2048] Black is on the roll. Black is much more active.} 24. Nh3 {[%emt 0:00:30] [#]} (24. Bxd5+ $17 Nxd5 (24... Bxd5+ 25. Nxd5 Nxd5 26. cxd5 $17) 25. Nxd5) 24... Ng4 $1 $19 {[%emt 0:00:30] ...Ne3 would now be deadly.} 25. Qd2 {[%emt 0:00:30]} Ne3 {[%emt 0:00:30]} 26. Rxf8+ {[%emt 0:00:30]} Rxf8 {[%emt 0:00:30]} 27. Re1 {[%emt 0:00:30]} Nxg2 {[%emt 0:00:30]} 28. Qxg2 {[%emt 0:00:30] White does not recover from this.} (28. Qxg5+ $17 Qg7 29. Qxg7+ Kxg7 30. Kxg2 dxc4+ 31. Kg1) 28... Ba8 {[%emt 0:00:30]} 29. Nxg5 {[%emt 0:00:30]} dxc4 {[%emt 0:00:30][%cal Od4e3] ( -> ...Qe3!)} 30. Ne4 cxd3 {[%emt 0:00:30] Black mates.} 31. h4 {[%emt 0:01:00]} d2 {[%emt 0:00:30]} 32. Nf6+ {[%emt 0:00:30]} Qxf6 {[%emt 0:00:30] Weighted Error Value: White=0.73/Black=0.14 (very precise)   Loses game:     	White=1     	---        Mistake:       	White=5     	---        Inaccurate:     	White=1     	Black=3      OK:         	White=6     	Black=5      Best:        	White=3     	Black=2      Strong:       	---       	Black=2} 0-1

[Event "Silves Open 2025"]
[Site "Fissul"]
[Date "2025.03.04"]
[Round "6.18"]
[White "Almeida, Marta Dias"]
[Black "Sanchez Guirado, Francisco"]
[Result "1/2-1/2"]
[Annotator "TA"]
[ECO "E94"]
[WhiteElo "1790"]
[BlackElo "2286"]
[PlyCount "50"]
[EventDate "2025.03.03"]
[EventType "swiss"]
[EventCountry "POR"]
[SourceTitle "playchess.com"]
[Source "ChessBase"]
[SourceQuality "1"]
[TimeControl "5400+30"]

{[%evp 19,50,7,12,-8,-16,-22,-14,-41,-49,-55,-7,-37,-29,-33,0,0,0,0,0,-3,-2,-5,-1,-14,0,-2,0,0,0,0,0,0,0]} 1. d4 {[%emt 0:00:02]} Nf6 {[%emt 0:00:26]} 2. c4 {[%emt 0:00:05]} g6 {[%emt 0:00:08]} 3. Nc3 {[%emt 0:00:04]} Bg7 {[%emt 0:00:06]} 4. Nf3 {[%emt 0:00:18]} O-O {[%emt 0:00:12]} 5. e4 {[%emt 0:00:07]} d6 {[%emt 0:00:05]} 6. Be2 {[%emt 0:00:07]} e5 {[%emt 0:00:07]} 7. O-O {[%emt 0:00:39]} Na6 {[%emt 0:00:11]} 8. d5 {[%emt 0:01:42]} Nc5 {[%emt 0:00:21]} 9. Qc2 {[%emt 0:00:12]} a5 {[%emt 0:00:11]} 10. Be3 {[%emt 0:01:51]} b6 {[%emt 0:01:29]} 11. b3 {[%emt 0:01:03] E94: King's Indian: Classical: 6 Be2 e5 7 0-0: Various Black 7th moves.} Ng4 {[%emt 0:03:22]} 12. Bd2 {[%emt 0:02:20]} (12. Bxc5 {simplifies} bxc5 13. h3 Nf6 14. Nh2) 12... f5 {[%emt 0:01:41]} 13. h3 $146 {[%emt 0:04:48]} ({Predecessor:} 13. Bg5 Bf6 14. Bxf6 Nxf6 15. exf5 Bxf5 16. Qd2 Qe7 17. Rae1 Rae8 18. Qe3 {0-1 Peycheva,G (2218)-Parvanyan,A (2431) Munich Pfingst op-A 1st 2023 (2)}) 13... fxe4 {[%emt 0:01:29]} 14. Ng5 {[%emt 0:07:29]} Nf6 {[%emt 0:02:06]} (14... e3 $15 {was preferable.} 15. Bxg4 Rxf2 16. Rxf2 Qxg5 17. Bxc8 Rxc8 (17... exf2+ $2 {is the wrong capture.} 18. Kf1 $18)) 15. Ngxe4 {[%emt 0:00:54]} Nfxe4 {[%emt 0:01:19]} 16. Nxe4 {[%emt 0:01:11]} Bf5 {[%emt 0:00:27]} 17. Bd3 {[%emt 0:05:07] The position is equal.} Nxd3 {[%emt 0:02:32]} 18. Qxd3 {[%emt 0:00:16]} Qh4 {[%emt 0:04:39]} 19. f3 {[%emt 0:01:51]} Bh6 {[%emt 0:04:19]} 20. Bxh6 {[%emt 0:03:14]} Qxh6 {[%emt 0:01:19]} 21. a3 {[%emt 0:00:52]} Rf7 {[%emt 0:12:50]} 22. b4 {[%emt 0:00:56]} Bxe4 {[%emt 0:15:00]} 23. fxe4 {[%emt 0:01:06]} Rxf1+ {[%emt 0:01:55]} 24. Rxf1 {[%emt 0:00:34]} axb4 {[%emt 0:00:20]} 25. axb4 {[%emt 0:00:16]} Rf8 {[%emt 0:07:42] Weighted Error Value: White=0.10 (very precise) /Black=0.09 (flawless)   Mistake:       	---       	Black=1      Inaccurate:     	White=2     	Black=1      OK:         	White=2     	Black=6} 1/2-1/2